bitfinex-derivatives/quotes_SOLF0:USTF0_20250501
["timestamp","ask_amount","ask_price","bid_price","bid_amount"]
[1746069079072,555.28,149.17,149.12,6.7055]
[1746069079272,555.28,149.17,149.09,6.1299]
[1746069079470,6.7039,149.16,149.09,6.1299]
[1746069079879,6.7039,149.16,149.13,6.7051]
[1746069080472,23.74,149.17,149.09,6.1299]
[1746069081173,30.4434,149.17,149.14,6.7044]
[1746069083479,23.74,149.17,149.11,23.74]
[1746069083778,30.82557542,149.2,149.11,23.74]
[1746069083978,6.7028,149.19,149.15,6.704]
[1746069084169,23.74,149.2,149.15,6.704]
[1746069084477,6.7028,149.19,149.15,6.704]
[1746069084680,23.74,149.2,149.11,23.74]
[1746069084979,6.7037,149.17,149.11,23.74]
[1746069085181,7.08557542,149.18,149.14,6.7044]
[1746069085373,23.74,149.2,149.11,23.74]
[1746069085776,23.74,149.2,149.16,6.7035]
[1746069086276,30.4422,149.2,149.17,6.7033]
[1746069086476,23.74,149.2,149.17,6.7033]
[1746069086781,30.4421,149.2,149.17,6.7033]
[1746069086985,23.74,149.2,149.18,6.7029]
[1746069087681,23.74,149.2,149.17,6.7032]
[1746069088979,23.74,149.2,149.11,23.74]
[1746069089183,23.74,149.2,149.13,7.08557542]
[1746069089383,6.7012,149.22,149.14,4.1123]
[1746069089588,6.7012,149.22,149.15,23.72]
[1746069089882,6.7012,149.22,149.15,25.6823]
[1746069090083,6.7012,149.22,149.19,6.7022]
[1746069091185,23.72,149.23,149.15,25.6823]
[1746069091593,23.72,149.23,149.16,7.08557542]
[1746069091891,6.6991,149.27,149.19,7.08557542]
[1746069092179,23.72,149.29,149.2,27.7373]
[1746069092385,6.6989,149.27,149.24,6.6999]
[1746069093280,6.6989,149.27,149.23,6.7005]
[1746069094780,6.6996,149.26,149.23,6.7005]
[1746069094987,23.72,149.29,149.22,6.7009]
[1746069096183,7.08557542,149.28,149.21,1.9175]
[1746069096380,7.08557542,149.28,149.2,32.4039]
[1746069096684,6.7005,149.24,149.2,8.6839]
[1746069096886,6.7005,149.24,149.21,6.7016]
[1746069097186,23.7,149.25,149.21,6.7016]
[1746069097381,6.7003,149.24,149.21,6.7016]
[1746069098085,6.7003,149.24,149.2,8.6838]
[1746069099483,23.7,149.25,149.2,1.982]
[1746069099789,23.7,149.25,149.19,6.7023]
[1746069099790,30.78557542,149.25,149.19,6.7023]
[1746069100085,6.701,149.23,149.19,6.7023]
[1746069102189,6.701,149.23,149.2,6.7019]
[1746069102591,6.701,149.23,149.17,25.8227]
[1746069102790,6.7012,149.22,149.19,6.7024]
[1746069102985,30.78557542,149.25,149.19,6.7024]
[1746069103390,6.7009,149.23,149.19,6.7024]
[1746069104288,6.7012,149.22,149.19,6.7024]
[1746069104493,23.7,149.25,149.19,6.7024]
[1746069104892,6.7009,149.23,149.17,25.8227]
[1746069105400,6.7009,149.23,149.19,6.7021]
[1746069106596,6.7012,149.22,149.19,6.7021]
[1746069107697,6.7016,149.21,149.18,6.7029]
[1746069107903,30.78557542,149.25,149.17,25.8227]
[1746069108194,30.78557542,149.25,149.16,1.9918]
[1746069108399,30.78557542,149.25,149.16,8.6955]
[1746069109094,6.7023,149.2,149.16,8.6955]
[1746069109297,23.7,149.21,149.15,6.7042]
[1746069109694,6.7027,149.19,149.14,23.7]
[1746069111198,6.7027,149.19,149.16,6.7038]
[1746069116001,6.7032,149.18,149.15,6.704]
[1746069116303,23.7,149.21,149.12,3.9818]
[1746069116500,23.7,149.21,149.15,26.37]
[1746069116902,7.08557542,149.19,149.15,26.37]
[1746069117503,6.7036,149.17,149.15,26.37]
[1746069121008,6.7031,149.18,149.15,26.37]
[1746069122217,6.7034,149.17,149.15,26.37]
[1746069122810,6.7031,149.18,149.15,26.37]
[1746069125912,23.7,149.21,149.15,26.37]
[1746069126210,30.78557542,149.21,149.15,33.0741]
[1746069126912,6.7032,149.18,149.15,33.0741]
[1746069130514,30.78557542,149.21,149.15,26.37]
[1746069130815,23.7,149.21,149.12,3.9818]
[1746069131115,30.4018,149.21,149.17,6.7031]
[1746069131315,23.7,149.21,149.17,6.7031]
[1746069131615,23.7,149.21,149.16,6.7037]
[1746069131815,23.7,149.21,149.12,3.9818]
[1746069132716,6.7027,149.19,149.15,6.7038]
[1746069133015,6.7027,149.19,149.12,3.9818]
[1746069133820,6.703,149.18,149.15,6.7039]
[1746069134921,6.7034,149.17,149.15,6.7039]
[1746069140728,6.7034,149.17,149.14,6.7045]
[1746069141330,6.7034,149.17,149.15,6.7042]
[1746069141531,6.703,149.18,149.15,6.7042]
[1746069143429,6.703,149.18,149.16,6.7038]
[1746069144130,6.7027,149.19,149.16,6.7038]
[1746069144330,6.7027,149.19,149.17,6.7034]
[1746069144527,23.7,149.21,149.12,3.9818]
[1746069144828,23.7,149.21,149.14,7.08557542]
[1746069145231,23.7,149.21,149.18,6.7029]
[1746069145524,371.08557542,149.31,149.14,7.08557542]
[1746069145730,6.7002,149.25,149.2,6.7019]
[1746069146431,6.7002,149.25,149.21,6.7016]
[1746069147531,30.3995,149.26,149.17,5.9455]
[1746069147734,30.3995,149.26,149.17,13.03107542]
[1746069148135,30.3995,149.26,149.22,6.7007]
[1746069148734,23.7,149.26,149.23,6.7006]
[1746069149036,23.7,149.26,149.17,13.03107542]
[1746069149332,23.7,149.26,149.23,6.7004]
[1746069149733,23.7,149.26,149.24,6.7001]
[1746069149930,23.7,149.26,149.17,13.03107542]
[1746069151134,23.68,149.29,149.2,7.08557542]
[1746069151335,23.68,149.29,149.21,23.68]
[1746069151735,23.68,149.29,149.22,2.1106]
[1746069151936,30.378,149.29,149.22,2.1106]
[1746069152435,30.378,149.29,149.25,6.6994]
[1746069152835,30.378,149.29,149.22,2.1106]
[1746069153538,30.378,149.29,149.25,6.6995]
[1746069153735,30.378,149.29,149.22,2.1106]
[1746069154633,30.378,149.29,149.24,6.7002]
[1746069154838,30.378,149.29,149.23,4.0478]
[1746069155040,6.6986,149.28,149.23,4.0478]
[1746069155635,6.6986,149.28,149.25,6.6995]
[1746069155841,6.6989,149.27,149.23,4.0478]
[1746069156541,6.6989,149.27,149.24,6.7001]
[1746069157539,6.6986,149.28,149.25,6.6997]
[1746069158943,6.699,149.27,149.24,6.7001]
[1746069159341,23.68,149.29,149.24,6.7001]
[1746069159542,6.6986,149.28,149.24,6.7001]
[1746069160240,6.6986,149.28,149.25,6.6998]
[1746069161543,30.3781,149.29,149.26,6.6992]
[1746069162545,30.378,149.29,149.26,6.6992]
[1746069164348,23.68,149.29,149.27,6.6985]
[1746069164643,23.66,149.32,149.23,4.0478]
[1746069164944,23.66,149.32,149.26,6.6989]
[1746069165347,6.6981,149.29,149.25,6.6995]
[1746069165644,6.6981,149.29,149.23,4.0478]
[1746069165844,6.6981,149.29,149.25,6.6994]
[1746069166143,6.6981,149.29,149.23,4.0478]
[1746069166348,6.6981,149.29,149.25,6.6995]
[1746069166852,6.6985,149.28,149.25,6.6995]
[1746069167650,23.66,149.32,149.23,4.0478]
[1746069168450,23.66,149.32,149.26,6.6991]
[1746069169153,6.6982,149.29,149.26,6.6991]
[1746069172459,6.6986,149.28,149.25,6.6996]
[1746069173159,6.6981,149.29,149.26,6.6993]
[1746069173561,6.6981,149.29,149.23,4.0478]
[1746069173757,6.6981,149.29,149.25,6.6995]
[1746069173953,23.66,149.28,149.23,4.0478]
[1746069174253,23.66,149.27,149.18,23.66]
[1746069174451,23.66,149.27,149.18,27.7167]
[1746069175164,6.7,149.25,149.21,6.7012]
[1746069176365,6.7003,149.24,149.21,6.7012]
[1746069176561,23.66,149.27,149.2,6.7019]
[1746069176761,23.66,149.27,149.18,27.7167]
[1746069176959,7.08557542,149.25,149.18,27.7167]
[1746069177261,7.08557542,149.25,149.18,10.7594]
[1746069178066,6.7017,149.21,149.18,10.7594]
[1746069178272,7.08557542,149.25,149.18,4.0567]
[1746069178273,23.66,149.23,149.18,4.0567]
[1746069178565,6.7018,149.21,149.17,6.7033]
[1746069179469,6.7021,149.2,149.17,6.7033]
[1746069179671,6.7021,149.2,149.16,8.6696]
[1746069180169,6.7021,149.2,149.16,1.966]
[1746069180971,7.08557542,149.22,149.14,3.9189]
[1746069182271,7.08557542,149.19,149.13,23.66]
[1746069182471,30.74557542,149.19,149.1,554.42]
[1746069182773,6.7041,149.16,149.12,6.7053]
[1746069182972,30.74557542,149.19,149.09,27.6155]
[1746069183474,7.08557542,149.16,149.09,27.6155]
[1746069183668,23.68,149.15,149.09,3.9355]
[1746069184071,6.7053,149.13,149.09,10.6422]
[1746069184771,6.7053,149.13,149.09,6.7067]
[1746069185372,6.7049,149.14,149.1,6.7064]
[1746069186973,6.7052,149.13,149.1,6.7064]
[1746069187372,6.7052,149.13,149.09,6.7068]
[1746069191176,6.7052,149.13,149.1,6.7064]
[1746069191577,6.7052,149.13,149.06,29.9305]
[1746069191771,6.7052,149.13,149.09,6.7067]
[1746069192175,6.7057,149.12,149.09,6.7067]
[1746069194479,23.68,149.15,149.06,29.9305]
[1746069196182,6.7061,149.11,149.08,6.7071]
[1746069197682,6.7061,149.11,149.07,6.7077]
[1746069197876,6.7068,149.1,149.06,29.9305]
[1746069198293,7.08557542,149.13,149.06,29.9305]
[1746069198583,7.08557542,149.13,149.06,4.1441]
[1746069198780,7.08557542,149.13,149.06,10.8524]
[1746069199384,6.7068,149.1,149.07,6.7079]
[1746069199882,6.707,149.09,149.06,10.8523]
[1746069200185,23.68,149.11,149.06,4.1441]
[1746069200985,6.7068,149.1,149.07,6.7079]
[1746069202785,7.08557542,149.1,149.02,2.0186]
[1746069203281,6.7084,149.06,149.02,8.7284]
[1746069204289,30.3881,149.07,149.03,6.7096]
[1746069204482,30.76557542,149.1,149.02,2.0186]
[1746069204683,23.68,149.11,149.03,23.68]
[1746069204883,23.68,149.11,149.03,30.76557542]
[1746069205792,30.3861,149.11,149.08,6.7072]
[1746069209193,23.68,149.11,149.03,23.68]
[1746069210791,6.7068,149.1,149.07,6.7077]
[1746069210994,23.68,149.11,149.03,23.68]
[1746069211394,6.7072,149.09,149.06,6.7081]
[1746069211597,6.7072,149.09,149.03,23.68]
[1746069212797,6.7072,149.09,149.06,6.7079]
[1746069214891,23.68,149.11,149.02,25.6986]
[1746069215092,7.08557542,149.1,149.02,25.6986]
[1746069215295,6.7086,149.06,149.03,6.7096]
[1746069215490,7.08557542,149.1,149.03,6.7096]
[1746069215997,6.7086,149.06,149.03,6.7096]
[1746069216201,23.68,149.07,149.02,8.7285]
[1746069216700,6.7086,149.06,149.02,8.7285]
[1746069216895,6.7086,149.06,149.03,6.7096]
[1746069217095,6.7086,149.06,149.02,2.0186]
[1746069217505,23.68,149.07,149.02,2.0186]
[1746069218104,30.3882,149.07,149.03,6.7093]
[1746069218806,23.68,149.07,149.02,8.7285]
[1746069219402,6.7088,149.05,149.03,16.94]
[1746069219605,30.76557542,149.07,149.03,16.94]
[1746069220109,6.7092,149.04,149.03,16.94]
[1746069223111,7.08557542,149.04,148.97,4.0339]
[1746069223406,23.68,149.03,148.97,4.0339]
[1746069223603,6.712,148.98,148.94,8.7929]
[1746069224208,6.712,148.98,148.95,6.7133]
[1746069225208,6.7116,148.99,148.94,2.0794]
[1746069225409,7.08557542,149.01,148.94,2.0794]
[1746069225712,7.08557542,148.95,148.86,7.93107073]
[1746069225906,23.68,148.94,148.86,11.96247073]
[1746069226208,6.7153,148.91,148.86,11.96247073]
[1746069226908,6.7156,148.9,148.86,11.96247073]
[1746069228609,6.7156,148.9,148.86,4.0314]
[1746069229008,6.7156,148.9,148.86,10.7487]
[1746069229211,6.7152,148.91,148.86,10.7487]
[1746069229414,7.08557542,148.92,148.86,4.0314]
[1746069229610,23.68,148.94,148.86,4.0314]
[1746069229809,6.7143,148.93,148.88,6.7164]
[1746069230010,23.68,148.94,148.88,6.7164]
[1746069230412,23.68,148.94,148.86,4.0314]
[1746069230413,6.7149,148.92,148.87,6.7168]
[1746069230714,23.68,148.94,148.87,6.7168]
[1746069231212,23.68,148.94,148.86,4.0314]
[1746069231515,6.7143,148.93,148.86,4.0314]
[1746069232214,6.7143,148.93,148.89,6.7156]
[1746069232615,30.3939,148.94,148.86,4.0314]
[1746069233719,6.7142,148.93,148.89,6.7158]
[1746069235018,23.68,148.94,148.88,30.3963]
[1746069235318,6.715,148.92,148.88,30.3963]
[1746069235516,23.68,148.94,148.88,23.68]
[1746069235917,6.715,148.92,148.88,23.68]
[1746069236121,6.715,148.92,148.88,30.3961]
[1746069237021,6.7143,148.93,148.89,6.7159]
[1746069238013,30.78557542,148.97,148.88,23.68]
[1746069239920,7.08557542,148.94,148.88,23.68]
[1746069240221,6.7147,148.92,148.88,30.3962]
[1746069240517,7.08557542,148.94,148.88,23.68]
[1746069240818,6.7145,148.93,148.89,6.716]
[1746069241119,7.08557542,148.94,148.88,23.68]
[1746069241320,6.7154,148.91,148.88,6.7164]
[1746069242521,6.7148,148.92,148.86,4.0314]
[1746069242722,23.7,148.93,148.86,4.0314]
[1746069243226,23.7,148.93,148.9,6.7155]
[1746069244018,30.4146,148.93,148.89,6.7159]
[1746069244223,23.7,148.93,148.89,6.7159]
[1746069245222,23.7,148.93,148.9,6.7153]
[1746069245926,23.7,148.93,148.89,6.7159]
[1746069246226,23.7,148.93,148.87,2.0325]
[1746069246827,30.4143,148.93,148.87,2.0325]
[1746069247822,6.7148,148.92,148.89,6.7157]
[1746069249527,6.7148,148.92,148.9,6.7155]
[1746069249724,30.4143,148.93,148.9,6.7155]
[1746069250028,23.7,148.96,148.89,24.1]
[1746069250326,24.1,148.98,148.89,24.1]
[1746069251430,6.7131,148.96,148.93,6.714]
[1746069251727,24.1,148.98,148.89,24.1]
[1746069252026,6.7129,148.96,148.93,6.7138]
[1746069253730,6.7129,148.96,148.92,6.7144]
[1746069254035,6.7129,148.96,148.89,24.1]
[1746069254333,6.7129,148.96,148.93,6.7138]
[1746069256231,6.7133,148.95,148.92,6.7145]
[1746069256731,6.7133,148.95,148.92,27.8145]
[1746069256931,6.713,148.96,148.92,27.8145]
[1746069257132,6.713,148.96,148.93,6.7141]
[1746069258336,6.713,148.96,148.92,27.8145]
[1746069259734,6.713,148.96,148.93,6.7141]
[1746069261837,6.7133,148.95,148.92,27.8144]
[1746069262532,6.713,148.96,148.92,27.8144]
[1746069263932,6.713,148.96,148.93,6.7141]
[1746069267438,24.1,148.98,148.94,6.7134]
[1746069267640,24.1,148.98,148.92,21.1]
[1746069267947,6.7126,148.97,148.94,6.7137]
[1746069268141,24.1,148.98,148.92,21.1]
[1746069268539,24.1,148.98,148.92,27.8144]
[1746069269641,6.7132,148.96,148.92,27.8144]
[1746069269937,24.1,148.98,148.92,21.1]
[1746069270130,6.7142,148.93,148.92,21.1]
[1746069277640,31.18557542,148.94,148.87,2.0325]
[1746069277842,7.08557542,148.91,148.87,2.0325]
[1746069278045,24.1,148.9,148.86,2.0132]
[1746069278440,24.1,148.9,148.83,24.1]
[1746069278647,24.1,148.9,148.82,2.0101]
[1746069278945,24.1,148.9,148.83,6.7186]
[1746069279452,6.7173,148.87,148.83,6.7186]
[1746069279753,24.1,148.9,148.84,6.7182]
[1746069279956,6.7166,148.88,148.84,6.7182]
[1746069280953,6.7161,148.89,148.85,6.7177]
[1746069281753,6.7161,148.89,148.86,6.7172]
[1746069282056,30.8157,148.9,148.86,6.7172]
[1746069282554,24.1,148.9,148.86,6.7172]
[1746069282949,30.8157,148.9,148.86,6.7172]
[1746069284557,30.8157,148.9,148.87,6.7167]
[1746069284756,24.1,148.9,148.87,6.7167]
[1746069285147,30.8158,148.9,148.87,6.7167]
[1746069285864,7.08557542,148.88,148.82,2.0101]
[1746069286654,7.08557542,148.88,148.84,6.7182]
[1746069286861,24.1,148.9,148.82,2.0101]
[1746069287160,6.7169,148.87,148.84,6.718]
[1746069287359,6.7169,148.87,148.82,2.0101]
[1746069288763,6.7166,148.88,148.84,6.7179]
[1746069290158,6.7169,148.87,148.84,6.7179]
[1746069292063,6.7166,148.88,148.84,6.7179]
[1746069292664,6.7161,148.89,148.82,2.0101]
[1746069292965,24.1,148.9,148.83,2.0746]
[1746069293166,30.8158,148.9,148.86,6.717]
[1746069293875,30.8158,148.9,148.87,6.7166]
[1746069294270,30.8158,148.9,148.83,2.0746]
[1746069294460,24.1,148.9,148.83,2.0746]
[1746069294661,24.1,148.9,148.84,23.96]
[1746069294966,23.96,148.93,148.84,23.96]
[1746069295468,23.96,148.93,148.86,6.7173]
[1746069295469,6.7163,148.89,148.86,6.7173]
[1746069299373,6.7163,148.89,148.85,6.7176]
[1746069299570,6.7163,148.89,148.84,23.96]
[1746069300378,6.7163,148.89,148.86,6.7171]
[1746069301074,6.7163,148.89,148.84,23.96]
[1746069301272,6.7157,148.9,148.87,6.7169]
[1746069302176,6.7152,148.91,148.88,6.7161]
[1746069302873,6.7148,148.92,148.89,6.7157]
[1746069303576,6.7148,148.92,148.88,6.7162]
[1746069303778,6.7151,148.91,148.88,6.7162]
[1746069304378,6.7148,148.92,148.88,6.7162]
[1746069304579,6.7148,148.92,148.89,6.7159]
[1746069304880,23.96,148.94,148.85,7.08557542]
[1746069305069,30.6739,148.94,148.85,7.08557542]
[1746069305274,30.6739,148.94,148.86,1.9762]
[1746069305573,30.6739,148.94,148.87,1.9513]
[1746069305773,30.6739,148.94,148.88,2.0154]
[1746069306276,30.6739,148.94,148.91,6.7148]
[1746069308975,30.6739,148.94,148.9,6.7153]
[1746069309174,30.6739,148.94,148.88,25.9754]
[1746069309479,30.6739,148.94,148.9,6.7152]
[1746069309980,30.6739,148.94,148.91,6.7151]
[1746069311377,23.96,148.94,148.88,25.9754]
[1746069313184,23.96,148.94,148.92,6.7146]
[1746069313783,30.6926,148.97,148.93,6.7142]
[1746069314082,30.6926,148.97,148.88,25.9754]
[1746069314083,6.7126,148.97,148.88,33.06097542]
[1746069314482,6.7126,148.97,148.93,6.7138]
[1746069314782,6.7126,148.97,148.88,33.06097542]
[1746069315373,30.692,148.98,148.88,33.06097542]
[1746069315984,30.692,148.98,148.95,6.713]
[1746069316885,30.692,148.98,148.96,6.7128]
[1746069317084,30.692,148.98,148.93,3.9978]
[1746069318180,23.98,148.98,148.95,6.7131]
[1746069318486,23.98,148.98,148.93,3.9978]
[1746069318884,6.7125,148.97,148.94,6.7136]
[1746069319388,30.6921,148.98,148.95,6.7131]
[1746069324590,23.98,148.98,148.93,3.9978]
[1746069324797,555.52,149.01,148.93,3.9978]
[1746069324995,30.6906,149.01,148.98,6.7117]
[1746069325599,6.7102,149.02,148.99,6.7112]
[1746069326598,6.7102,149.02,148.98,6.7119]
[1746069327298,23.98,149.04,148.96,23.98]
[1746069327897,6.7107,149.01,148.98,6.7117]
[1746069328399,6.7103,149.02,148.98,6.7117]
[1746069331605,6.7106,149.01,148.98,6.7117]
[1746069332610,6.7106,149.01,148.99,6.7115]
[1746069332810,7.08557542,149.01,148.97,15.55]
[1746069333012,23.98,149.0,148.97,15.55]
[1746069333609,6.7119,148.98,148.97,15.55]
[1746069333912,6.7119,148.98,148.93,3.9978]
[1746069334609,6.7125,148.97,148.94,6.7136]
[1746069334809,6.7125,148.97,148.93,3.9978]
[1746069335009,6.7125,148.97,148.93,10.7117]
[1746069335614,6.7125,148.97,148.94,6.7136]
[1746069338109,6.7121,148.98,148.95,6.7133]
[1746069343619,6.7125,148.97,148.95,6.7133]
[1746069343811,6.7125,148.97,148.94,6.7135]
[1746069345618,6.7125,148.97,148.95,6.7133]
[1746069348621,6.7121,148.98,148.95,6.7133]
[1746069349017,23.98,149.0,148.93,3.9978]
[1746069349321,6.7131,148.96,148.93,3.9978]
[1746069349621,6.7131,148.96,148.93,10.7117]
[1746069350116,6.7135,148.95,148.93,3.9978]
[1746069350318,7.08557542,148.98,148.9,23.98]
[1746069351020,6.7137,148.94,148.91,6.7148]
[1746069352017,23.82,148.96,148.9,6.7154]
[1746069352520,6.7139,148.94,148.91,6.715]
[1746069358429,6.7139,148.94,148.9,6.7152]
[1746069359228,6.7139,148.94,148.91,6.715]
[1746069360228,6.7134,148.95,148.92,6.7145]
[1746069362434,6.7138,148.94,148.91,6.7149]
[1746069362634,23.82,148.96,148.91,6.7149]
[1746069363135,6.714,148.94,148.91,6.7149]
[1746069368544,6.7142,148.93,148.9,30.5354]
[1746069370843,6.7142,148.93,148.91,6.715]
[1746069376047,6.7142,148.93,148.9,30.5353]
[1746069376747,6.7142,148.93,148.91,6.715]
[1746069380650,11.26022932,148.94,148.91,6.715]
[1746069380949,4.54612932,148.94,148.91,6.715]
[1746069381643,11.26002932,148.94,148.91,6.715]
[1746069384952,11.26002932,148.94,148.92,6.7146]
[1746069385352,11.26002932,148.94,148.9,20.0]
[1746069385650,11.26002932,148.94,148.91,6.7149]
[1746069386553,6.7143,148.93,148.91,6.7149]
[1746069388763,11.25992932,148.94,148.91,6.7149]
[1746069389063,23.82,148.96,148.9,24.54612932]
[1746069389264,6.7134,148.95,148.9,24.54612932]
[1746069390164,6.7134,148.95,148.93,6.7141]
[1746069391662,4.54612932,148.95,148.9,24.54612932]
[1746069391865,4.54612932,148.93,148.9,20.0]
[1746069392165,4.54612932,148.95,148.9,20.0]
[1746069392366,6.7139,148.94,148.9,20.0]
[1746069392571,4.54612932,148.95,148.9,24.54612932]
[1746069393271,11.25962932,148.95,148.92,6.7144]
[1746069395468,11.25962932,148.95,148.93,6.7141]
[1746069395673,23.82,148.96,148.9,24.54612932]
[1746069397072,23.82,148.96,148.94,6.7137]
[1746069397676,11.25882932,148.97,148.95,6.7132]
[1746069398781,4.54612932,148.97,148.95,6.7132]
[1746069402478,4.54612932,148.97,148.96,6.7128]
[1746069402981,28.28612932,149.01,148.98,6.7119]
[1746069403276,34.99692932,149.01,148.98,6.7119]
[1746069403677,28.28612932,149.01,148.97,6.7122]
[1746069403876,4.54612932,148.99,148.94,8.45162932]
[1746069404080,4.54612932,148.99,148.94,3.9055]
[1746069404379,4.54612932,148.97,148.94,3.9055]
[1746069404577,4.54612932,148.97,148.92,23.74]
[1746069404777,6.7131,148.96,148.93,6.7141]
[1746069404979,4.54612932,148.97,148.93,6.7141]
[1746069405279,6.7129,148.96,148.93,6.7141]
[1746069405680,4.54612932,148.97,148.93,6.7141]
[1746069405877,6.7129,148.96,148.93,6.7141]
[1746069407071,11.25872932,148.97,148.94,6.7137]
[1746069407784,6.7128,148.96,148.94,6.7137]
[1746069407985,6.7128,148.96,148.93,6.714]
[1746069409083,6.7133,148.95,148.93,6.714]
[1746069409285,6.7133,148.95,148.92,23.74]
[1746069409286,6.7133,148.95,148.92,30.4546]
[1746069409583,6.7133,148.95,148.92,23.74]
[1746069409880,6.713,148.96,148.93,6.7141]
[1746069410385,11.25952932,148.95,148.92,30.4544]
[1746069410585,11.25952932,148.95,148.92,6.7144]
[1746069412682,11.25952932,148.95,148.93,6.7141]
[1746069412887,4.54612932,148.95,148.93,6.7141]
[1746069414587,6.713,148.96,148.93,6.7141]
[1746069414785,34.99872932,148.97,148.91,8.53652932]
[1746069414980,28.28612932,148.97,148.92,1.9756]
[1746069415178,4.54612932,148.97,148.92,1.9756]
[1746069415589,4.54612932,148.97,148.95,6.713]
[1746069422695,4.54612932,148.97,148.91,8.53652932]
[1746069422993,4.54612932,148.93,148.89,23.74]
[1746069423195,4.54612932,148.91,148.86,34.28352932]
[1746069423793,4.54612932,148.91,148.89,6.7157]
[1746069425091,6.7156,148.9,148.86,27.7783]
[1746069425293,4.54612932,148.89,148.86,4.0383]
[1746069425497,4.54612932,148.89,148.87,6.7166]
[1746069432201,4.54612932,148.89,148.83,23.74]
[1746069432702,4.54612932,148.89,148.86,6.7171]
[1746069434192,11.26212932,148.89,148.86,6.7171]
[1746069436506,6.7165,148.88,148.85,6.7176]
[1746069437508,6.717,148.87,148.84,6.7181]
[1746069437711,4.54612932,148.87,148.84,6.7181]
[1746069438009,4.54612932,148.87,148.82,2.0156]
[1746069438208,6.7176,148.86,148.83,6.7184]
[1746069442012,4.54612932,148.85,148.82,20.0]
[1746069443418,11.26422932,148.85,148.82,26.7189]
[1746069444215,6.7183,148.84,148.82,26.7189]
[1746069445316,6.7183,148.84,148.82,20.0]
[1746069445721,4.54612932,148.85,148.82,20.0]
[1746069445722,11.26402932,148.85,148.82,20.0]
[1746069445916,4.54612932,148.87,148.82,20.0]
[1746069446119,28.28612932,148.89,148.83,4.54612932]
[1746069446320,6.7178,148.85,148.82,20.0]
[1746069446515,4.54612932,148.85,148.82,20.0]
[1746069447319,6.7185,148.84,148.82,20.0]
[1746069448921,6.7187,148.83,148.82,20.0]
[1746069450423,28.30612932,148.85,148.82,20.0]
[1746069450618,23.76,148.85,148.81,4.1907]
[1746069451021,6.7183,148.84,148.81,10.9101]
[1746069451423,6.7183,148.84,148.81,4.1907]
[1746069451623,30.478,148.85,148.82,6.7191]
[1746069452224,23.76,148.85,148.84,6.7182]
[1746069452413,11.26322932,148.87,148.81,8.73682932]
[1746069452618,23.76,148.88,148.83,4.54612932]
[1746069452926,28.30612932,148.91,148.87,6.7169]
[1746069453326,6.7158,148.9,148.87,6.7169]
[1746069453521,28.30612932,148.91,148.86,10.8688]
[1746069453927,6.7162,148.89,148.86,10.8688]
[1746069454231,28.30612932,148.91,148.86,10.8688]
[1746069454427,28.30612932,148.91,148.87,6.7168]
[1746069454923,6.7159,148.9,148.87,6.7168]
[1746069455129,4.54612932,148.89,148.86,4.1516]
[1746069455529,6.7166,148.88,148.86,4.1516]
[1746069456029,6.7161,148.89,148.86,4.1516]
[1746069456231,6.7161,148.89,148.86,10.8687]
[1746069456630,23.76,148.91,148.86,4.1516]
[1746069457431,23.76,148.91,148.84,6.7181]